Workbook

Sheet Sheet1
A4: Customer Class | B4: Residential
A5: Consumption | B5: 750 | C5: kWh
A6: Demand | B6: 0 | C6: kWh
A7: Current Loss Factor | B7: 1.0383
A8: Proposed/Approved Loss Factor | B8: 1.0383
B10: Current OEB-Approved | E10: Proposed | H10: Impact
B11: Rate ($) | C11: Volume | D11: Charge ($) | E11: Rate ($) | F11: Volume | G11: Charge ($) | H11: $ Change | I11: % Change
A12: Monthly Service Charge | B12: 18.06 | C12: 1 | D12: =B12*C12 -> 18.06 | E12: 21.29 | F12: 1 | G12: =E12*F12 -> 21.29 | H12: =G12-D12 -> 3.23 | I12: =H12/D12 -> 0.1788482835
A13: Distribution Volumetric Rate | B13: 0.0111 | C13: 750 | D13: =B13*C13 -> 8.325 | E13: 0.0075 | F13: 750 | G13: =E13*F13 -> 5.625 | H13: =G13-D13 -> -2.7 | I13: =H13/D13 -> -0.3243243243
A14: Fixed Rate Riders | B14: 0 | C14: 1 | D14: 0 | E14: -0.06 | F14: 1 | G14: -0.06 | H14: -0.06
A15: Volumetric Rate Riders | B15: 0 | C15: 750 | D15: 0 | E15: 0 | F15: 1 | G15: 0
A16: Volumetric Rate Riders-1576 Rate Adder | B16: 0 | C16: 1 | D16: 0 | E16: -7.18 | F16: 1 | G16: -7.18 | H16: -7.18
A17: Sub-Total A (excluding pass through) | D17: =SUM(D12:D16) -> 26.385 | G17: =SUM(G12:G16) -> 19.675 | H17: =G17-D17 -> -6.71 | I17: =H17/D17 -> -0.2543111616
A18: Line Losses on Cost of Power | B18: 0.113 | C18: 28.73 | D18: =B18*C18 -> 3.24649 | E18: 0.113 | F18: 28.73 | G18: =F18*E18 -> 3.24649 | H18: =G18-D18 -> 0 | I18: =H18/D18 -> 0
A19: Total Deferral/Variance Account Rate Riders | B19: 0 | C19: 750 | D19: 0 | E19: 0 | F19: 750 | G19: =F19*E19 -> 0 | H19: =G19-D19 -> 0
A20: GA Rate Riders | B20: 0 | D20: 0 | E20: 0 | G20: 0 | H20: 0
A21: Low Voltage Service Charge | B21: 0 | C21: 750 | D21: 0 | E21: 0 | F21: 750 | G21: 0 | H21: 0
A22: Smart Meter Entity Charge (if applicable) | B22: 0.79 | C22: 1 | D22: 0.79 | E22: 0.79 | F22: 1 | G22: 0.79 | H22: 0
A23: Sub-Total B - Distribution (includes Sub-Total A) | D23: =SUM(D17:D22) -> 30.42149 | G23: =SUM(G17:G22) -> 23.71149 | H23: =SUM(H17:H22) -> -6.71 | I23: =H23/D23 -> -0.2205677631
A24: RTSR - Network | B24: 0.0084 | C24: 778.725 | D24: 6.54129 | E24: 0.0079 | F24: 778.725 | G24: =F24*E24 -> 6.1519275 | H24: -0.3893625 | I24: =H24/D24 -> -0.05952380952
A25: RTSR - Connection and/or Line and Transformation Connection | B25: 0.0068 | C25: 778.725 | D25: 5.29533 | E25: 0.0065 | F25: 778.725 | G25: =F25*E25 -> 5.0617125 | H25: -0.2336175 | I25: -0.04411764706
A26: Sub-Total C - Delivery (including Sub-Total B) | D26: =SUM(D23:D25) -> 42.25811 | G26: =SUM(G23:G25) -> 34.92513 | H26: =SUM(H23:H25) -> -7.33298 | I26: =H26/D26 -> -0.1735283476
A27: Wholesale Market Service Charge (WMSC) | B27: 0.0036 | C27: 778.725 | D27: =C27*B27 -> 2.80341 | E27: 0.0036 | F27: 778.725 | G27: =F27*E27 -> 2.80341 | H27: 0 | I27: 0
A28: Rural and Remote Rate Protection (RRRP) | B28: 0.0013 | C28: 778.725 | D28: =C28*B28 -> 1.0123425 | E28: 0.0013 | F28: 778.725 | G28: =F28*E28 -> 1.0123425 | H28: 0 | I28: 0
A29: Standard Supply Service Charge | D29: 0 | G29: 0 | H29: 0 | I29: 0
A30: Debt Retirement Charge (DRC) | D30: 0 | G30: 0 | H30: 0 | I30: 0
A31: Ontario Electricity Support Program (OESP) | B31: 0.0011 | C31: 778.725 | D31: 0.8565975 | E31: 0.0011 | F31: 778.725 | G31: 0.8565975 | H31: 0 | I31: 0
A32: TOU - Off Peak | B32: 0.087 | C32: 487.5 | D32: 42.4125 | E32: 0.087 | F32: 487.5 | G32: 42.4125 | H32: 0 | I32: 0
A33: TOU - Mid Peak | B33: 0.132 | C33: 127.5 | D33: 16.83 | E33: 0.132 | F33: 127.5 | G33: 16.83 | H33: 0 | I33: 0
A34: TOU - On Peak | B34: 0.18 | C34: 135 | D34: 24.3 | E34: 0.18 | F34: 135 | G34: 24.3 | H34: 0 | I34: 0
A35: Non-RPP Retailer Avg. Price | B35: 0.113 | C35: 750 | D35: 84.75 | E35: 0.113 | F35: 750 | G35: 84.75 | H35: 0 | I35: 0
A36: Average IESO Wholesale Market Price | B36: 0.113 | C36: 750 | D36: 84.75 | E36: 0.113 | F36: 750 | G36: 84.75 | H36: 0 | I36: 0
A38: Total Bill on TOU (before Taxes) | D38: =SUM(D26:D34) -> 130.47296 | G38: =SUM(G26:G34) -> 123.13998 | H38: =G38-D38 -> -7.33298 | I38: =H38/D38 -> -0.05620306307
A39: HST | B39: 0.13 | D39: =D38*B39 -> 16.9614848 | E39: 0.13 | G39: =G38*E39 -> 16.0081974 | H39: =G39-D39 -> -0.9532874 | I39: -0.05620306307
A40: Total Bill on TOU | D40: =SUM(D38:D39) -> 147.4344448 | G40: =SUM(G38:G39) -> 139.1481774 | H40: -8.2862674 | I40: -0.05620306307
A42: Total Bill on Non-RPP Avg. Price | D42: =SUM(D26,D27:D31,D35) -> 131.68046 | G42: =SUM(G26,G27:G31,G35) -> 124.34748 | H42: -7.33298 | I42: -0.05568768517
A43: HST | B43: 0.13 | D43: =D42*B43 -> 17.1184598 | E43: 0.13 | G43: =G42*E43 -> 16.1651724 | H43: -0.9532874 | I43: -0.05568768517
A44: Total Bill on Non-RPP Avg. Price | D44: =SUM(D42:D43) -> 148.7989198 | G44: =SUM(G42:G43) -> 140.5126524 | H44: -8.2862674 | I44: -0.05568768517
A46: Total Bill on Average IESO Wholesale Market Price | D46: =SUM(D26,D27:D31,D36) -> 131.68046 | G46: =SUM(G26,G27:G31,G36) -> 124.34748 | H46: -7.33298 | I46: -0.05568768517
A47: HST | B47: 0.13 | D47: =D46*B47 -> 17.1184598 | E47: 0.13 | G47: =G46*E47 -> 16.1651724 | H47: -0.9532874 | I47: -0.05568768517
A48: Total Bill on Average IESO Wholesale Market Price | D48: =SUM(D46:D47) -> 148.7989198 | G48: =SUM(G46:G47) -> 140.5126524 | H48: -8.2862674 | I48: -0.05568768517
A52: Customer Class | B52: GS Less Than 50 kW
A53: Consumption | B53: 2000 | C53: kWh
A54: Demand | B54: 0 | C54: kWh
A55: Current Loss Factor | B55: 1.0383
A56: Proposed/Approved Loss Factor | B56: 1.0383
B58: Current OEB-Approved | E58: Proposed | H58: Impact
B59: Rate ($) | C59: Volume | D59: Charge ($) | E59: Rate ($) | F59: Volume | G59: Charge ($) | H59: $ Change | I59: % Change
A60: Monthly Service Charge | B60: 30.16 | C60: 1 | D60: =B60*C60 -> 30.16 | E60: 30.61 | F60: 1 | G60: =E60*F60 -> 30.61 | H60: =G60-D60 -> 0.45 | I60: =H60/D60 -> 0.0149204244
A61: Distribution Volumetric Rate | B61: 0.0197 | C61: 2000 | D61: =B61*C61 -> 39.4 | E61: 0.02 | F61: 2000 | G61: =E61*F61 -> 40 | H61: =G61-D61 -> 0.6 | I61: =H61/D61 -> 0.0152284264
A62: Fixed Rate Riders | B62: 0 | C62: 1 | D62: 0 | E62: 0 | F62: 1 | G62: 0 | H62: 0
A63: Volumetric Rate Riders | E63: -0.0001 | F63: 2000 | G63: -0.2 | H63: -0.2
A64: Volumetric Rate Riders-1576 Rate Adder | B64: 0 | C64: 1 | D64: 0 | E64: -0.0008 | F64: 2000 | G64: -1.6 | H64: -1.6
A65: Sub-Total A (excluding pass through) | D65: =SUM(D60:D64) -> 69.56 | G65: =SUM(G60:G64) -> 68.81 | H65: =G65-D65 -> -0.75 | I65: =H65/D65 -> -0.01078205865
A66: Line Losses on Cost of Power | B66: 0.113 | C66: 76.6 | D66: =B66*C66 -> 8.6558 | E66: 0.113 | F66: 76.6 | G66: =F66*E66 -> 8.6558 | H66: =G66-D66 -> 0 | I66: =H66/D66 -> 0
A67: Total Deferral/Variance Account Rate Riders | B67: 0 | C67: 2076.6 | D67: 0 | E67: 0 | F67: 2076.6 | G67: =F67*E67 -> 0 | H67: =G67-D67 -> 0
A68: GA Rate Riders | B68: 0 | D68: 0 | E68: 0 | G68: 0 | H68: 0
A69: Low Voltage Service Charge | B69: 0 | C69: 2076.6 | D69: 0 | E69: 0 | F69: 2076.6 | G69: 0 | H69: 0
A70: Smart Meter Entity Charge (if applicable) | B70: 0.79 | C70: 1 | D70: 0.79 | E70: 0.79 | F70: 1 | G70: 0.79 | H70: 0
A71: Sub-Total B - Distribution (includes Sub-Total A) | D71: =SUM(D65:D70) -> 79.0058 | G71: =SUM(G65:G70) -> 78.2558 | H71: =SUM(H65:H70) -> -0.75 | I71: =H71/D71 -> -0.009492973934
A72: RTSR - Network | B72: 0.0076 | C72: 2076.6 | D72: =B72*C72 -> 15.78216 | E72: 0.0071 | F72: 2076.6 | G72: =F72*E72 -> 14.74386 | H72: =G72-D72 -> -1.0383 | I72: =H72/D72 -> -0.06578947368
A73: RTSR - Connection and/or Line and Transformation Connection | B73: 0.0061 | C73: 2076.6 | D73: 12.66726 | E73: 0.0058 | F73: 2076.6 | G73: =F73*E73 -> 12.04428 | H73: -0.62298 | I73: -0.04918032787
A74: Sub-Total C - Delivery (including Sub-Total B) | D74: =SUM(D71:D73) -> 107.45522 | G74: =SUM(G71:G73) -> 105.04394 | H74: =SUM(H71:H73) -> -2.41128 | I74: =H74/D74 -> -0.02243985913
A75: Wholesale Market Service Charge (WMSC) | B75: 0.0036 | C75: 2076.6 | D75: =C75*B75 -> 7.47576 | E75: 0.0036 | F75: 2076.6 | G75: =F75*E75 -> 7.47576 | H75: =G75-D75 -> 0 | I75: 0
A76: Rural and Remote Rate Protection (RRRP) | B76: 0.0013 | C76: 2076.6 | D76: =C76*B76 -> 2.69958 | E76: 0.0013 | F76: 2076.6 | G76: =F76*E76 -> 2.69958 | H76: 0 | I76: 0
A77: Standard Supply Service Charge | D77: 0 | G77: 0 | H77: 0 | I77: 0
A78: Debt Retirement Charge (DRC) | B78: 0.007 | C78: 2000 | D78: 14 | E78: 0.007 | F78: 2000 | G78: 14 | H78: 0 | I78: 0
A79: Ontario Electricity Support Program (OESP) | B79: 0.0011 | C79: 2076.6 | D79: 2.28426 | E79: 0.0011 | F79: 2076.6 | G79: 2.28426 | H79: 0 | I79: 0
A80: TOU - Off Peak | B80: 0.087 | C80: 1300 | D80: 113.1 | E80: 0.087 | F80: 1300 | G80: 113.1 | H80: 0 | I80: 0
A81: TOU - Mid Peak | B81: 0.132 | C81: 340 | D81: 44.88 | E81: 0.132 | F81: 340 | G81: 44.88 | H81: 0 | I81: 0
A82: TOU - On Peak | B82: 0.18 | C82: 360 | D82: 64.8 | E82: 0.18 | F82: 360 | G82: 64.8 | H82: 0 | I82: 0
A83: Non-RPP Retailer Avg. Price | B83: 0.113 | C83: 2000 | D83: 226 | E83: 0.113 | F83: 2000 | G83: 226 | H83: 0 | I83: 0
A84: Average IESO Wholesale Market Price | B84: 0.113 | C84: 2000 | D84: 226 | E84: 0.113 | F84: 2000 | G84: 226 | H84: 0 | I84: 0
A86: Total Bill on TOU (before Taxes) | D86: =SUM(D74:D82) -> 356.69482 | G86: =SUM(G74:G82) -> 354.28354 | H86: =G86-D86 -> -2.41128 | I86: =H86/D86 -> -0.006760064528
A87: HST | B87: 0.13 | D87: =D86*B87 -> 46.3703266 | E87: 0.13 | G87: =G86*E87 -> 46.0568602 | H87: =G87-D87 -> -0.3134664 | I87: -0.006760064528
A88: Total Bill on TOU | D88: =SUM(D86:D87) -> 403.0651466 | G88: =SUM(G86:G87) -> 400.3404002 | H88: -2.7247464 | I88: -0.006760064528
A90: Total Bill on Non-RPP Avg. Price | D90: =SUM(D74,D75:D79,D83) -> 359.91482 | G90: =SUM(G74,G75:G79,G83) -> 357.50354 | H90: =G90-D90 -> -2.41128 | I90: =H90/D90 -> -0.006699585196
A91: HST | B91: 0.13 | D91: =D90*B91 -> 46.7889266 | E91: 0.13 | G91: =G90*E91 -> 46.4754602 | H91: -0.3134664 | I91: -0.006699585196
A92: Total Bill on Non-RPP Avg. Price | D92: =SUM(D90:D91) -> 406.7037466 | G92: =SUM(G90:G91) -> 403.9790002 | H92: -2.7247464 | I92: -0.006699585196
A94: Total Bill on Average IESO Wholesale Market Price | D94: =SUM(D74,D75:D79,D84) -> 359.91482 | G94: =SUM(G74,G75:G79,G84) -> 357.50354 | H94: =G94-D94 -> -2.41128 | I94: =H94/D94 -> -0.006699585196
A95: HST | B95: 0.13 | D95: =D94*B95 -> 46.7889266 | E95: 0.13 | G95: =G94*E95 -> 46.4754602 | H95: -0.3134664 | I95: -0.006699585196
A96: Total Bill on Average IESO Wholesale Market Price | D96: =SUM(D94:D95) -> 406.7037466 | G96: =SUM(G94:G95) -> 403.9790002 | H96: -2.7247464 | I96: -0.006699585196
A100: Customer Class | B100: GS Greater Than 50 kW
A101: Consumption | B101: 237500 | C101: kWh
A102: Demand | B102: 500 | C102: kWh
A103: Current Loss Factor | B103: 1.0383
A104: Proposed/Approved Loss Factor | B104: 1.0383
B106: Current OEB-Approved | E106: Proposed | H106: Impact
B107: Rate ($) | C107: Volume | D107: Charge ($) | E107: Rate ($) | F107: Volume | G107: Charge ($) | H107: $ Change | I107: % Change
A108: Monthly Service Charge | B108: 136.76 | C108: 1 | D108: =B108*C108 -> 136.76 | E108: 138.81 | F108: 1 | G108: =E108*F108 -> 138.81 | H108: =G108-D108 -> 2.05 | I108: =H108/D108 -> 0.01498976309
A109: Distribution Volumetric Rate | B109: 4.7178 | C109: 500 | D109: =B109*C109 -> 2358.9 | E109: 4.7886 | F109: 500 | G109: =E109*F109 -> 2394.3 | H109: =G109-D109 -> 35.4 | I109: =H109/D109 -> 0.01500699479
A110: Fixed Rate Riders | B110: 0 | C110: 1 | D110: 0 | E110: 0 | F110: 1 | G110: 0 | H110: 0
A111: Volumetric Rate Riders | B111: 0 | C111: 500 | D111: 0 | E111: -0.0146 | F111: 500 | G111: -7.3 | H111: -7.3
A112: Volumetric Rate Riders-1576 Rate Adder | B112: 0 | C112: 1 | D112: =B112*C112 -> 0 | E112: -0.3234 | F112: 500 | G112: -161.7 | H112: -161.7
A113: Sub-Total A (excluding pass through) | D113: =SUM(D108:D112) -> 2495.66 | G113: =SUM(G108:G112) -> 2364.11 | H113: =G113-D113 -> -131.55 | I113: =H113/D113 -> -0.05271150718
A114: Line Losses on Cost of Power | B114: 0 | C114: 0 | D114: =B114*C114 -> 0 | E114: 0 | F114: 0 | G114: =F114*E114 -> 0 | H114: =G114-D114 -> 0
A115: Total Deferral/Variance Account Rate Riders | B115: 0 | C115: 500 | D115: 0 | E115: 0 | F115: 500 | G115: =F115*E115 -> 0 | H115: =G115-D115 -> 0
A116: GA Rate Riders | B116: 0 | D116: 0 | E116: 0 | F116: 237500 | G116: 0 | H116: 0
A117: Low Voltage Service Charge | B117: 0 | C117: 500 | D117: 0 | E117: 0 | F117: 500 | G117: 0 | H117: 0
A118: Smart Meter Entity Charge (if applicable) | B118: 0 | C118: 1 | D118: 0 | E118: 0 | F118: 1 | G118: 0 | H118: 0
A119: Sub-Total B - Distribution (includes Sub-Total A) | D119: =SUM(D113:D118) -> 2495.66 | G119: =SUM(G113:G118) -> 2364.11 | H119: =SUM(H113:H118) -> -131.55 | I119: =H119/D119 -> -0.05271150718
A120: RTSR - Network | B120: 3.0822 | C120: 500 | D120: =B120*C120 -> 1541.1 | E120: 2.8839 | F120: 500 | G120: =F120*E120 -> 1441.95 | H120: =G120-D120 -> -99.15 | I120: =H120/D120 -> -0.06433716177
A121: RTSR - Connection and/or Line and Transformation Connection | B121: 2.4039 | C121: 500 | D121: 1201.95 | E121: 2.2823 | F121: 500 | G121: =F121*E121 -> 1141.15 | H121: -60.8 | I121: -0.05058446691
A122: Sub-Total C - Delivery (including Sub-Total B) | D122: =SUM(D119:D121) -> 5238.71 | G122: =SUM(G119:G121) -> 4947.21 | H122: =SUM(H119:H121) -> -291.5 | I122: =H122/D122 -> -0.05564346948
A123: Wholesale Market Service Charge (WMSC) | B123: 0.0036 | C123: 246596.25 | D123: =C123*B123 -> 887.7465 | E123: 0.0036 | F123: 246596.25 | G123: =F123*E123 -> 887.7465 | H123: =G123-D123 -> 0 | I123: 0
A124: Rural and Remote Rate Protection (RRRP) | B124: 0.0013 | C124: 246596.25 | D124: =C124*B124 -> 320.575125 | E124: 0.0013 | F124: 246596.25 | G124: =F124*E124 -> 320.575125 | H124: 0 | I124: 0
A125: Standard Supply Service Charge | D125: 0 | G125: 0 | H125: 0 | I125: 0
A126: Debt Retirement Charge (DRC) | B126: 0.007 | C126: 237500 | D126: 1662.5 | E126: 0.007 | F126: 237500 | G126: 1662.5 | H126: 0 | I126: 0
A127: Ontario Electricity Support Program (OESP) | B127: 0.0011 | C127: 246596.25 | D127: 271.255875 | E127: 0.0011 | F127: 246596.25 | G127: 271.255875 | H127: 0 | I127: 0
A128: TOU - Off Peak | B128: 0.087 | C128: 160287.56 | D128: 13945.01772 | E128: 0.087 | F128: 160287.56 | G128: 13945.01772 | H128: 0 | I128: 0
A129: TOU - Mid Peak | B129: 0.132 | C129: 41921.36 | D129: 5533.61952 | E129: 0.132 | F129: 41921.36 | G129: 5533.61952 | H129: 0 | I129: 0
A130: TOU - On Peak | B130: 0.18 | C130: 44387.33 | D130: 7989.7194 | E130: 0.18 | F130: 44387.33 | G130: 7989.7194 | H130: 0 | I130: 0
A131: Non-RPP Retailer Avg. Price | B131: 0.113 | C131: 246596.25 | D131: 27865.37625 | E131: 0.113 | F131: 246596.25 | G131: 27865.37625 | H131: 0 | I131: 0
A132: Average IESO Wholesale Market Price | B132: 0.113 | C132: 246596.25 | D132: 27865.37625 | E132: 0.113 | F132: 246596.25 | G132: 27865.37625 | H132: 0 | I132: 0
A134: Total Bill on TOU (before Taxes) | D134: =SUM(D122:D130) -> 35849.14414 | G134: =SUM(G122:G130) -> 35557.64414 | H134: =G134-D134 -> -291.5 | I134: =H134/D134 -> -0.008131295934
A135: HST | B135: 0.13 | D135: =D134*B135 -> 4660.388738 | E135: 0.13 | G135: =G134*E135 -> 4622.493738 | H135: =G135-D135 -> -37.895 | I135: -0.008131295934
A136: Total Bill on TOU | D136: =SUM(D134:D135) -> 40509.53288 | G136: =SUM(G134:G135) -> 40180.13788 | H136: -329.395 | I136: -0.008131295934
A138: Total Bill on Non-RPP Avg. Price | D138: =SUM(D122,D123:D127,D131) -> 36246.16375 | G138: =SUM(G122,G123:G127,G131) -> 35954.66375 | H138: =G138-D138 -> -291.5 | I138: =H138/D138 -> -0.0080422304
A139: HST | B139: 0.13 | D139: =D138*B139 -> 4712.001288 | E139: 0.13 | G139: =G138*E139 -> 4674.106287 | H139: -37.895 | I139: -0.0080422304
A140: Total Bill on Non-RPP Avg. Price | D140: =SUM(D138:D139) -> 40958.16504 | G140: =SUM(G138:G139) -> 40628.77004 | H140: -329.395 | I140: -0.0080422304
A142: Total Bill on Average IESO Wholesale Market Price | D142: =SUM(D122,D123:D127,D132) -> 36246.16375 | G142: =SUM(G122,G123:G127,G132) -> 35954.66375 | H142: =G142-D142 -> -291.5 | I142: =H142/D142 -> -0.0080422304
A143: HST | B143: 0.13 | D143: =D142*B143 -> 4712.001288 | E143: 0.13 | G143: =G142*E143 -> 4674.106287 | H143: -37.895 | I143: -0.0080422304
A144: Total Bill on Average IESO Wholesale Market Price | D144: =SUM(D142:D143) -> 40958.16504 | G144: =SUM(G142:G143) -> 40628.77004 | H144: -329.395 | I144: -0.0080422304
A148: Customer Class | B148: Unmetered Scattered Load
A149: Consumption | B149: 237500 | C149: kWh
A150: Demand | B150: 500 | C150: kWh
A151: Current Loss Factor | B151: 1.0383
A152: Proposed/Approved Loss Factor | B152: 1.0383
B154: Current OEB-Approved | E154: Proposed | H154: Impact
B155: Rate ($) | C155: Volume | D155: Charge ($) | E155: Rate ($) | F155: Volume | G155: Charge ($) | H155: $ Change | I155: % Change
A156: Monthly Service Charge | B156: 17.41 | C156: 1 | D156: =B156*C156 -> 17.41 | E156: 17.67 | F156: 1 | G156: =E156*F156 -> 17.67 | H156: =G156-D156 -> 0.26 | I156: =H156/D156 -> 0.01493394601
A157: Distribution Volumetric Rate | B157: 0.02 | C157: 200 | D157: =B157*C157 -> 4 | E157: 0.0203 | F157: 200 | G157: =E157*F157 -> 4.06 | H157: =G157-D157 -> 0.06 | I157: =H157/D157 -> 0.015
A158: Fixed Rate Riders | B158: 0 | C158: 1 | D158: 0 | E158: 0 | F158: 1 | G158: 0 | H158: 0
A159: Volumetric Rate Riders | B159: 0 | C159: 200 | D159: 0 | E159: -0.0002 | F159: 200 | G159: -0.04 | H159: -0.04
A160: Volumetric Rate Riders-1576 Rate Adder | B160: 0 | C160: 1 | D160: 0 | E160: -0.0008 | F160: 200 | G160: -0.16 | H160: -0.16
A161: Sub-Total A (excluding pass through) | D161: =SUM(D156:D160) -> 21.41 | G161: =SUM(G156:G160) -> 21.53 | H161: =G161-D161 -> 0.12 | I161: =H161/D161 -> 0.005604857543
A162: Line Losses on Cost of Power | B162: 0.113 | C162: 7.66 | D162: =B162*C162 -> 0.86558 | E162: 0.113 | F162: 7.66 | G162: 0.86558 | H162: =G162-D162 -> 0
A163: Total Deferral/Variance Account Rate Riders | B163: 0 | C163: 200 | D163: 0 | E163: 0 | F163: 200 | G163: 0 | H163: =G163-D163 -> 0
A164: GA Rate Riders | B164: 0 | D164: 0 | E164: 0 | F164: 200 | G164: 0 | H164: 0
A165: Low Voltage Service Charge | B165: 0 | C165: 200 | D165: 0 | E165: 0 | F165: 200 | G165: 0 | H165: 0
A166: Smart Meter Entity Charge (if applicable) | B166: 0 | C166: 1 | D166: 0 | E166: 0 | F166: 1 | G166: 0 | H166: 0
A167: Sub-Total B - Distribution (includes Sub-Total A) | D167: =SUM(D161:D166) -> 22.27558 | G167: =SUM(G161:G166) -> 22.39558 | H167: =SUM(H161:H166) -> 0.12 | I167: =H167/D167 -> 0.005387065118
A168: RTSR - Network | B168: 0.0075 | C168: 207.66 | D168: =B168*C168 -> 1.55745 | E168: 0.007 | F168: 207.66 | G168: =F168*E168 -> 1.45362 | H168: =G168-D168 -> -0.10383 | I168: =H168/D168 -> -0.06666666667
A169: RTSR - Connection and/or Line and Transformation Connection | B169: 0.0061 | C169: 207.66 | D169: 1.266726 | E169: 0.0058 | F169: 207.66 | G169: =F169*E169 -> 1.204428 | H169: -0.062298 | I169: -0.04918032787
A170: Sub-Total C - Delivery (including Sub-Total B) | D170: =SUM(D167:D169) -> 25.099756 | G170: =SUM(G167:G169) -> 25.053628 | H170: =SUM(H167:H169) -> -0.046128 | I170: =H170/D170 -> -0.00183778679
A171: Wholesale Market Service Charge (WMSC) | B171: 0.0036 | C171: 207.66 | D171: =C171*B171 -> 0.747576 | E171: 0.0036 | F171: 207.66 | G171: =F171*E171 -> 0.747576 | H171: =G171-D171 -> 0 | I171: 0
A172: Rural and Remote Rate Protection (RRRP) | B172: 0.0013 | C172: 207.66 | D172: =C172*B172 -> 0.269958 | E172: 0.0013 | F172: 207.66 | G172: =F172*E172 -> 0.269958 | H172: 0 | I172: 0
A173: Standard Supply Service Charge | D173: 0 | G173: 0 | H173: 0 | I173: 0
A174: Debt Retirement Charge (DRC) | B174: 0.007 | C174: 200 | D174: 1.4 | E174: 0.007 | F174: 200 | G174: 1.4 | H174: 0 | I174: 0
A175: Ontario Electricity Support Program (OESP) | B175: 0.0011 | C175: 207.66 | D175: 0.228426 | E175: 0.0011 | F175: 207.66 | G175: 0.228426 | H175: 0 | I175: 0
A176: TOU - Off Peak | B176: 0.087 | C176: 130 | D176: 11.31 | E176: 0.087 | F176: 130 | G176: 11.31 | H176: 0 | I176: 0
A177: TOU - Mid Peak | B177: 0.132 | C177: 34 | D177: 4.488 | E177: 0.132 | F177: 34 | G177: 4.488 | H177: 0 | I177: 0
A178: TOU - On Peak | B178: 0.18 | C178: 36 | D178: 6.48 | E178: 0.18 | F178: 36 | G178: 6.48 | H178: 0 | I178: 0
A179: Non-RPP Retailer Avg. Price | B179: 0.113 | C179: 200 | D179: 22.6 | E179: 0.113 | F179: 200 | G179: 22.6 | H179: 0 | I179: 0
A180: Average IESO Wholesale Market Price | B180: 0.113 | C180: 200 | D180: 22.6 | E180: 0.113 | F180: 200 | G180: 22.6 | H180: 0 | I180: 0
A182: Total Bill on TOU (before Taxes) | D182: =SUM(D170:D178) -> 50.023716 | G182: =SUM(G170:G178) -> 49.977588 | H182: =G182-D182 -> -0.046128 | I182: =H182/D182 -> -0.0009221226188
A183: HST | B183: 0.13 | D183: =D182*B183 -> 6.50308308 | E183: 0.13 | G183: =G182*E183 -> 6.49708644 | H183: =G183-D183 -> -0.00599664 | I183: -0.0009221226188
A184: Total Bill on TOU | D184: =SUM(D182:D183) -> 56.52679908 | G184: =SUM(G182:G183) -> 56.47467444 | H184: -0.05212464 | I184: -0.0009221226188
A186: Total Bill on Non-RPP Avg. Price | D186: =SUM(D170,D171:D175,D179) -> 50.345716 | G186: =SUM(G170,G171:G175,G179) -> 50.299588 | H186: =G186-D186 -> -0.046128 | I186: =H186/D186 -> -0.0009162249277
A187: HST | B187: 0.13 | D187: =D186*B187 -> 6.54494308 | E187: 0.13 | G187: =G186*E187 -> 6.53894644 | H187: -0.00599664 | I187: -0.0009162249277
A188: Total Bill on Non-RPP Avg. Price | D188: =SUM(D186:D187) -> 56.89065908 | G188: =SUM(G186:G187) -> 56.83853444 | H188: -0.05212464 | I188: -0.0009162249277
A190: Total Bill on Average IESO Wholesale Market Price | D190: =SUM(D170,D171:D175,D180) -> 50.345716 | G190: =SUM(G170,G171:G175,G180) -> 50.299588 | H190: =G190-D190 -> -0.046128 | I190: =H190/D190 -> -0.0009162249277
A191: HST | B191: 0.13 | D191: =D190*B191 -> 6.54494308 | E191: 0.13 | G191: =G190*E191 -> 6.53894644 | H191: -0.00599664 | I191: -0.0009162249277
A192: Total Bill on Average IESO Wholesale Market Price | D192: =SUM(D190:D191) -> 56.89065908 | G192: =SUM(G190:G191) -> 56.83853444 | H192: -0.05212464 | I192: -0.0009162249277
A196: Customer Class | B196: Sentinel Lighting
A197: Consumption | B197: 475 | C197: kWh
A198: Demand | B198: 1 | C198: kWh
A199: Current Loss Factor | B199: 1.0383
A200: Proposed/Approved Loss Factor | B200: 1.0383
B202: Current OEB-Approved | E202: Proposed | H202: Impact
B203: Rate ($) | C203: Volume | D203: Charge ($) | E203: Rate ($) | F203: Volume | G203: Charge ($) | H203: $ Change | I203: % Change
A204: Monthly Service Charge | B204: 3.21 | C204: 1 | D204: =B204*C204 -> 3.21 | E204: 3.26 | F204: 1 | G204: =E204*F204 -> 3.26 | H204: =G204-D204 -> 0.05 | I204: =H204/D204 -> 0.01557632399
A205: Distribution Volumetric Rate | B205: 12.2924 | C205: 1 | D205: =B205*C205 -> 12.2924 | E205: 12.4768 | F205: 1 | G205: =E205*F205 -> 12.4768 | H205: =G205-D205 -> 0.1844 | I205: =H205/D205 -> 0.01500113892
A206: Fixed Rate Riders | B206: 0 | C206: 1 | D206: 0 | E206: 0 | F206: 1 | G206: 0 | H206: 0
A207: Volumetric Rate Riders | B207: 0 | C207: 1 | D207: 0 | E207: -0.0778 | F207: 1 | G207: -0.0778 | H207: -0.0778
A208: Volumetric Rate Riders-1576 Rate Adder | B208: 0 | C208: 1 | D208: 0 | E208: -0.2745 | F208: 1 | G208: -0.2745 | H208: -0.2745
A209: Sub-Total A (excluding pass through) | D209: =SUM(D204:D208) -> 15.5024 | G209: =SUM(G204:G208) -> 15.3845 | H209: =G209-D209 -> -0.1179 | I209: =H209/D209 -> -0.007605274022
A210: Line Losses on Cost of Power | B210: 0.113 | C210: 18.19 | D210: =B210*C210 -> 2.05547 | E210: 0.113 | F210: 18.19 | G210: 2.05547 | H210: =G210-D210 -> 0
A211: Total Deferral/Variance Account Rate Riders | B211: 0 | C211: 1 | D211: 0 | E211: 0 | F211: 200 | G211: 0 | H211: =G211-D211 -> 0
A212: GA Rate Riders | B212: 0 | D212: 0 | E212: 0 | F212: 200 | G212: 0 | H212: 0
A213: Low Voltage Service Charge | B213: 0 | C213: 1 | D213: 0 | E213: 0 | F213: 200 | G213: 0 | H213: 0
A214: Smart Meter Entity Charge (if applicable) | B214: 0 | C214: 1 | D214: 0 | E214: 0 | F214: 1 | G214: 0 | H214: 0
A215: Sub-Total B - Distribution (includes Sub-Total A) | D215: =SUM(D209:D214) -> 17.55787 | G215: =SUM(G209:G214) -> 17.43997 | H215: =SUM(H209:H214) -> -0.1179 | I215: =H215/D215 -> -0.006714937518
A216: RTSR - Network | B216: 2.3255 | C216: 1 | D216: =B216*C216 -> 2.3255 | E216: 2.1759 | F216: 1 | G216: =F216*E216 -> 2.1759 | H216: =G216-D216 -> -0.1496 | I216: =H216/D216 -> -0.06433025156
A217: RTSR - Connection and/or Line and Transformation Connection | B217: 1.8967 | C217: 1 | D217: 1.8967 | E217: 1.8008 | F217: 1 | G217: =F217*E217 -> 1.8008 | H217: -0.0959 | I217: -0.05056150156
A218: Sub-Total C - Delivery (including Sub-Total B) | D218: =SUM(D215:D217) -> 21.78007 | G218: =SUM(G215:G217) -> 21.41667 | H218: =SUM(H215:H217) -> -0.3634 | I218: =H218/D218 -> -0.01668497851
A219: Wholesale Market Service Charge (WMSC) | B219: 0.0036 | C219: 493.1925 | D219: =C219*B219 -> 1.775493 | E219: 0.0036 | F219: 493.1925 | G219: =F219*E219 -> 1.775493 | H219: =G219-D219 -> 0 | I219: 0
A220: Rural and Remote Rate Protection (RRRP) | B220: 0.0013 | C220: 493.1925 | D220: =C220*B220 -> 0.64115025 | E220: 0.0013 | F220: 493.1925 | G220: =F220*E220 -> 0.64115025 | H220: 0 | I220: 0
A221: Standard Supply Service Charge | D221: 0 | G221: 0 | H221: 0 | I221: 0
A222: Debt Retirement Charge (DRC) | B222: 0.007 | C222: 475 | D222: 3.325 | E222: 0.007 | F222: 475 | G222: 3.325 | H222: 0 | I222: 0
A223: Ontario Electricity Support Program (OESP) | B223: 0.0011 | C223: 493.1925 | D223: 0.54251175 | E223: 0.0011 | F223: 493.1925 | G223: 0.54251175 | H223: 0 | I223: 0
A224: TOU - Off Peak | B224: 0.087 | C224: 308.75 | D224: 26.86125 | E224: 0.087 | F224: 308.75 | G224: 26.86125 | H224: 0 | I224: 0
A225: TOU - Mid Peak | B225: 0.132 | C225: 80.75 | D225: 10.659 | E225: 0.132 | F225: 80.75 | G225: 10.659 | H225: 0 | I225: 0
A226: TOU - On Peak | B226: 0.18 | C226: 85.5 | D226: 15.39 | E226: 0.18 | F226: 85.5 | G226: 15.39 | H226: 0 | I226: 0
A227: Non-RPP Retailer Avg. Price | B227: 0.113 | C227: 475 | D227: 53.675 | E227: 0.113 | F227: 475 | G227: 53.675 | H227: 0 | I227: 0
A228: Average IESO Wholesale Market Price | B228: 0.113 | C228: 475 | D228: 53.675 | E228: 0.113 | F228: 475 | G228: 53.675 | H228: 0 | I228: 0
A230: Total Bill on TOU (before Taxes) | D230: =SUM(D218:D226) -> 80.974475 | G230: =SUM(G218:G226) -> 80.611075 | H230: =G230-D230 -> -0.3634 | I230: =H230/D230 -> -0.004487833975
A231: HST | B231: 0.13 | D231: =D230*B231 -> 10.52668175 | E231: 0.13 | G231: =G230*E231 -> 10.47943975 | H231: =G231-D231 -> -0.047242 | I231: -0.004487833975
A232: Total Bill on TOU | D232: =SUM(D230:D231) -> 91.50115675 | G232: =SUM(G230:G231) -> 91.09051475 | H232: -0.410642 | I232: -0.004487833975
A234: Total Bill on Non-RPP Avg. Price | D234: =SUM(D218,D219:D223,D227) -> 81.739225 | G234: =SUM(G218,G219:G223,G227) -> 81.375825 | H234: =G234-D234 -> -0.3634 | I234: =H234/D234 -> -0.00444584592
... 87 more rows

Sheet Sheet2

Sheet Sheet3
